{"text_format":"1","workbook":"xlsx","n_sheets":6,"sheets":["1 Archer","2 Archers","3 Archers","4 Archers","feuille2","données"],"not_rendered":{"charts":0,"images":5,"macros":0,"external_links":0,"defined_names":0,"comments":0,"pivot_tables":0},"unopened":[],"bounds":{"document_bytes":16777216,"sheet_cells":100000,"rows_first":2000,"rows_last":500,"rows_between":2000,"halvings":0,"cell_chars":16384,"cell_head_chars":4096},"cells_cut":0,"cells_raw":0,"read":"whole","date_system":"1900"}

{"sheet":"1 Archer","index":0,"n_rows":22,"n_cols":10,"rows_kept":22,"cut":false,"hidden":false,"merged":[[1,0,1,5],[21,0,21,8],[21,9,21,10],[19,7,19,8],[18,7,18,8],[18,9,18,10],[19,9,19,10],[20,7,20,8],[20,9,20,10],[16,7,16,8],[16,9,16,10],[17,7,17,8],[17,9,17,10],[11,7,11,9],[1,6,1,10],[15,7,15,8],[15,9,15,10],[14,1,14,6],[14,7,14,8],[14,9,14,10],[10,1,10,2],[12,1,12,2],[4,7,4,9],[6,7,6,9],[10,7,10,9],[12,7,12,9],[9,1,9,2],[9,7,9,9],[11,1,11,2]]}
[]
["ARCHER",null,null,null,null,null,{"$f":"H5","v":0}]
[]
[]
[null,null,null,null,null,null,"Nom:"]
[]
[null,null,null,null,null,null,"Date:",{"$f":"TODAY()","v":"2020-11-15"}]
[]
[]
[null,"Arc",null,null,null,null,null,"Distance"]
[]
[null,"Blason",null,null,null,null,null,"Flèche"]
[]
[]
[null,"Volée",null,null,null,null,null,"Total volée",null,"Total cumulé"]
[1,null,null,null,null,null,null,{"$f":"SUM(B16:G16)","v":0},null,{"$f":"H16","v":0}]
[2,null,null,null,null,null,null,{"$f":"SUM(B17:G17)","v":0},null,{"$f":"H17+J16","v":0}]
[3,null,null,null,null,null,null,{"$f":"SUM(B18:G18)","v":0},null,0]
[4,null,null,null,null,null,null,0,null,0]
[5,null,null,null,null,null,null,0,null,0]
[6,null,null,null,null,null,null,0,null,0]
["TOTAL:",null,null,null,null,null,null,null,null,{"$f":"SUM(H16:I21)","v":0}]

{"sheet":"2 Archers","index":1,"n_rows":48,"n_cols":10,"rows_kept":48,"cut":false,"hidden":false,"merged":[[47,9,47,10],[44,9,44,10],[45,7,45,8],[45,9,45,10],[46,7,46,8],[46,9,46,10],[44,7,44,8],[47,0,47,8],[41,9,41,10],[42,7,42,8],[42,9,42,10],[43,7,43,8],[43,9,43,10],[41,7,41,8],[35,7,35,9],[36,7,36,9],[37,7,37,9],[38,7,38,9],[40,1,40,6],[40,7,40,8],[40,9,40,10],[35,1,35,2],[36,1,36,2],[37,1,37,2],[38,1,38,2],[23,9,23,10],[27,0,27,5],[27,6,27,10],[30,7,30,9],[32,7,32,9],[23,0,23,8],[20,9,20,10],[21,7,21,8],[21,9,21,10],[22,7,22,8],[22,9,22,10],[20,7,20,8],[17,7,17,8],[17,9,17,10],[18,7,18,8],[18,9,18,10],[19,7,19,8],[19,9,19,10],[14,1,14,2],[14,7,14,9],[16,1,16,6],[16,7,16,8],[16,9,16,10],[3,0,3,5],[3,6,3,10],[6,7,6,9],[8,7,8,9],[11,1,11,2],[12,1,12,2],[13,1,13,2],[11,7,11,9],[12,7,12,9],[13,7,13,9]]}
[]
[]
[]
["ARCHER N°1",null,null,null,null,null,{"$f":"H7","v":0}]
[]
[]
[null,null,null,null,null,null,"Nom:"]
[]
[null,null,null,null,null,null,"Date:",{"$f":"TODAY()","v":"2020-11-15"}]
[]
[]
[null,"Arc",null,null,null,null,null,"Distance"]
[null,"Classique"]
[null,"Blason",null,null,null,null,null,"Flèche"]
[null,80]
[]
[null,"Volée",null,null,null,null,null,"Total volée",null,"Total cumulé"]
[1,null,null,null,null,null,null,{"$f":"SUM(B18:G18)","v":0},null,{"$f":"H18","v":0}]
[2,null,null,null,null,null,null,{"$f":"SUM(B19:G19)","v":0},null,{"$f":"H19+J18","v":0}]
[3,null,null,null,null,null,null,{"$f":"SUM(B20:G20)","v":0},null,0]
[4,null,null,null,null,null,null,0,null,0]
[5,null,null,null,null,null,null,0,null,0]
[6,null,null,null,null,null,null,0,null,0]
["TOTAL:",null,null,null,null,null,null,null,null,{"$f":"SUM(H18:I23)","v":0}]
[]
[]
[]
["ARCHER N°2",null,null,null,null,null,{"$f":"H31","v":0}]
[]
[]
[null,null,null,null,null,null,"Nom:"]
[]
[null,null,null,null,null,null,"Date:",{"$f":"TODAY()","v":"2020-11-15"}]
[]
[]
[null,"Arc",null,null,null,null,null,"Distance"]
[null,"Classique"]
[null,"Blason",null,null,null,null,null,"Flèche"]
[null,80]
[]
[null,"Volée",null,null,null,null,null,"Total volée",null,"Total cumulé"]
[1,null,null,null,null,null,null,{"$f":"SUM(B42:G42)","v":0},null,{"$f":"H42","v":0}]
[2,null,null,null,null,null,null,{"$f":"SUM(B43:G43)","v":0},null,{"$f":"H43+J42","v":0}]
[3,null,null,null,null,null,null,{"$f":"SUM(B44:G44)","v":0},null,0]
[4,null,null,null,null,null,null,0,null,0]
[5,null,null,null,null,null,null,0,null,0]
[6,null,null,null,null,null,null,0,null,0]
["TOTAL:",null,null,null,null,null,null,null,null,{"$f":"SUM(H42:I47)","v":0}]

{"sheet":"3 Archers","index":2,"n_rows":69,"n_cols":10,"rows_kept":69,"cut":false,"hidden":false,"merged":[[11,1,11,2],[11,7,11,9],[12,1,12,2],[12,7,12,9],[13,1,13,2],[13,7,13,9],[2,6,2,10],[5,7,5,9],[7,7,7,9],[10,1,10,2],[10,7,10,9],[2,1,2,5],[15,1,15,6],[15,7,15,8],[15,9,15,10],[16,7,16,8],[16,9,16,10],[17,7,17,8],[17,9,17,10],[21,7,21,8],[21,9,21,10],[28,7,28,9],[22,0,22,8],[22,9,22,10],[25,6,25,10],[25,1,25,5],[18,7,18,8],[18,9,18,10],[19,7,19,8],[19,9,19,10],[20,7,20,8],[20,9,20,10],[30,7,30,9],[33,1,33,2],[33,7,33,9],[34,1,34,2],[34,7,34,9],[39,7,39,8],[39,9,39,10],[40,7,40,8],[40,9,40,10],[41,7,41,8],[41,9,41,10],[35,1,35,2],[35,7,35,9],[36,1,36,2],[36,7,36,9],[38,1,38,6],[38,7,38,8],[38,9,38,10],[42,7,42,8],[42,9,42,10],[43,7,43,8],[43,9,43,10],[44,7,44,8],[44,9,44,10],[45,0,45,8],[45,9,45,10],[48,6,48,10],[51,7,51,9],[53,7,53,9],[48,1,48,5],[62,7,62,8],[62,9,62,10],[56,1,56,2],[56,7,56,9],[57,1,57,2],[57,7,57,9],[58,1,58,2],[58,7,58,9],[59,1,59,2],[59,7,59,9],[61,1,61,6],[61,7,61,8],[61,9,61,10],[63,7,63,8],[63,9,63,10],[64,7,64,8],[64,9,64,10],[65,7,65,8],[65,9,65,10],[68,0,68,8],[68,9,68,10],[66,7,66,8],[66,9,66,10],[67,7,67,8],[67,9,67,10]]}
[]
[]
[null,"ARCHER N°1 :",null,null,null,null,{"$f":"H6","v":0}]
[]
[]
[null,null,null,null,null,null,"Nom:"]
[]
[null,null,null,null,null,null,"Date:",{"$f":"TODAY()","v":"2020-11-15"}]
[]
[]
[null,"Arc",null,null,null,null,null,"Distance"]
[null,"Classique"]
[null,"Blason",null,null,null,null,null,"Flèche"]
[]
[]
[null,"Volée",null,null,null,null,null,"Total volée",null,"Total cumulé"]
[1,null,null,null,null,null,null,{"$f":"SUM(B17:G17)","v":0},null,{"$f":"H17","v":0}]
[2,null,null,null,null,null,null,{"$f":"SUM(B18:G18)","v":0},null,{"$f":"H18+J17","v":0}]
[3,null,null,null,null,null,null,0,null,0]
[4,null,null,null,null,null,null,0,null,0]
[5,null,null,null,null,null,null,0,null,0]
[6,null,null,null,null,null,null,0,null,0]
["TOTAL:",null,null,null,null,null,null,null,null,{"$f":"SUM(H17:I22)","v":0}]
[]
[]
[null,"ARCHER N°2 :",null,null,null,null,{"$f":"H29","v":0}]
[]
[]
[null,null,null,null,null,null,"Nom:"]
[]
[null,null,null,null,null,null,"Date:",{"$f":"TODAY()","v":"2020-11-15"}]
[]
[]
[null,"Arc",null,null,null,null,null,"Distance"]
[null,"Classique"]
[null,"Blason",null,null,null,null,null,"Flèche"]
[]
[]
[null,"Volée",null,null,null,null,null,"Total volée",null,"Total cumulé"]
[1,null,null,null,null,null,null,{"$f":"SUM(B40:G40)","v":0},null,{"$f":"H40","v":0}]
[2,null,null,null,null,null,null,{"$f":"SUM(B41:G41)","v":0},null,{"$f":"H41+J40","v":0}]
[3,null,null,null,null,null,null,0,null,0]
[4,null,null,null,null,null,null,0,null,0]
[5,null,null,null,null,null,null,0,null,0]
[6,null,null,null,null,null,null,0,null,0]
["TOTAL:",null,null,null,null,null,null,null,null,{"$f":"SUM(H40:I45)","v":0}]
[]
[]
[null,"ARCHER N°3 :",null,null,null,null,{"$f":"H52","v":0}]
[]
[]
[null,null,null,null,null,null,"Nom:"]
[]
[null,null,null,null,null,null,"Date:",{"$f":"TODAY()","v":"2020-11-15"}]
[]
[]
[null,"Arc",null,null,null,null,null,"Distance"]
[null,"Classique"]
[null,"Blason",null,null,null,null,null,"Flèche"]
[]
[]
[null,"Volée",null,null,null,null,null,"Total volée",null,"Total cumulé"]
[1,null,null,null,null,null,null,{"$f":"SUM(B63:G63)","v":0},null,{"$f":"H63","v":0}]
[2,null,null,null,null,null,null,{"$f":"SUM(B64:G64)","v":0},null,{"$f":"H64+J63","v":0}]
[3,null,null,null,null,null,null,0,null,0]
[4,null,null,null,null,null,null,0,null,0]
[5,null,null,null,null,null,null,0,null,0]
[6,null,null,null,null,null,null,0,null,0]
["TOTAL:",null,null,null,null,null,null,null,null,{"$f":"SUM(H63:I68)","v":0}]

{"sheet":"4 Archers","index":3,"n_rows":92,"n_cols":10,"rows_kept":92,"cut":false,"hidden":false,"merged":[[2,6,2,10],[5,7,5,9],[7,7,7,9],[10,1,10,2],[10,7,10,9],[15,1,15,6],[15,7,15,8],[15,9,15,10],[2,1,2,5],[16,7,16,8],[16,9,16,10],[17,7,17,8],[17,9,17,10],[11,1,11,2],[11,7,11,9],[12,1,12,2],[12,7,12,9],[13,1,13,2],[13,7,13,9],[21,7,21,8],[21,9,21,10],[18,7,18,8],[18,9,18,10],[19,7,19,8],[19,9,19,10],[20,7,20,8],[20,9,20,10],[22,0,22,8],[22,9,22,10],[25,6,25,10],[25,1,25,5],[35,1,35,2],[35,7,35,9],[36,1,36,2],[36,7,36,9],[38,1,38,6],[38,7,38,8],[38,9,38,10],[28,7,28,9],[30,7,30,9],[33,1,33,2],[33,7,33,9],[34,1,34,2],[34,7,34,9],[42,7,42,8],[42,9,42,10],[43,7,43,8],[43,9,43,10],[44,7,44,8],[44,9,44,10],[39,7,39,8],[39,9,39,10],[40,7,40,8],[40,9,40,10],[41,7,41,8],[41,9,41,10],[56,1,56,2],[56,7,56,9],[57,1,57,2],[57,7,57,9],[58,1,58,2],[58,7,58,9],[45,0,45,8],[45,9,45,10],[48,6,48,10],[51,7,51,9],[53,7,53,9],[48,1,48,5],[63,7,63,8],[63,9,63,10],[64,7,64,8],[64,9,64,10],[65,7,65,8],[65,9,65,10],[59,1,59,2],[59,7,59,9],[61,1,61,6],[61,7,61,8],[61,9,61,10],[62,7,62,8],[62,9,62,10],[66,7,66,8],[66,9,66,10],[67,7,67,8],[67,9,67,10],[71,6,71,10],[74,7,74,9],[76,7,76,9],[79,1,79,2],[79,7,79,9],[68,0,68,8],[68,9,68,10],[71,1,71,5],[84,1,84,6],[84,7,84,8],[84,9,84,10],[85,7,85,8],[85,9,85,10],[86,7,86,8],[86,9,86,10],[80,1,80,2],[80,7,80,9],[81,1,81,2],[81,7,81,9],[82,1,82,2],[82,7,82,9],[90,7,90,8],[90,9,90,10],[87,7,87,8],[87,9,87,10],[88,7,88,8],[88,9,88,10],[89,7,89,8],[89,9,89,10],[91,0,91,8],[91,9,91,10]]}
[]
[]
[null,"ARCHER N°1 :",null,null,null,null,{"$f":"H6","v":0}]
[]
[]
[null,null,null,null,null,null,"Nom:"]
[]
[null,null,null,null,null,null,"Date:",{"$f":"TODAY()","v":"2020-11-15"}]
[]
[]
[null,"Arc",null,null,null,null,null,"Distance"]
[null,"Classique"]
[null,"Blason",null,null,null,null,null,"Flèche"]
[null,80]
[]
[null,"Volée",null,null,null,null,null,"Total volée",null,"Total cumulé"]
[1,null,null,null,null,null,null,{"$f":"SUM(B17:G17)","v":0},null,{"$f":"H17","v":0}]
[2,null,null,null,null,null,null,{"$f":"SUM(B18:G18)","v":0},null,{"$f":"H18+J17","v":0}]
[3,null,null,null,null,null,null,0,null,0]
[4,null,null,null,null,null,null,0,null,0]
[5,null,null,null,null,null,null,0,null,0]
[6,null,null,null,null,null,null,0,null,0]
["TOTAL:",null,null,null,null,null,null,null,null,{"$f":"SUM(H17:I22)","v":0}]
[]
[]
[null,"ARCHER N°2 :",null,null,null,null,{"$f":"H29","v":0}]
[]
[]
[null,null,null,null,null,null,"Nom:"]
[]
[null,null,null,null,null,null,"Date:",{"$f":"TODAY()","v":"2020-11-15"}]
[]
[]
[null,"Arc",null,null,null,null,null,"Distance"]
[null,"Classique"]
[null,"Blason",null,null,null,null,null,"Flèche"]
[null,80]
[]
[null,"Volée",null,null,null,null,null,"Total volée",null,"Total cumulé"]
[1,null,null,null,null,null,null,{"$f":"SUM(B40:G40)","v":0},null,{"$f":"H40","v":0}]
[2,null,null,null,null,null,null,{"$f":"SUM(B41:G41)","v":0},null,{"$f":"H41+J40","v":0}]
[3,null,null,null,null,null,null,0,null,0]
[4,null,null,null,null,null,null,0,null,0]
[5,null,null,null,null,null,null,0,null,0]
[6,null,null,null,null,null,null,0,null,0]
["TOTAL:",null,null,null,null,null,null,null,null,{"$f":"SUM(H40:I45)","v":0}]
[]
[]
[null,"ARCHER N°3 :",null,null,null,null,{"$f":"H52","v":0}]
[]
[]
[null,null,null,null,null,null,"Nom:"]
[]
[null,null,null,null,null,null,"Date:",{"$f":"TODAY()","v":"2020-11-15"}]
[]
[]
[null,"Arc",null,null,null,null,null,"Distance"]
[null,"Classique"]
[null,"Blason",null,null,null,null,null,"Flèche"]
[null,80]
[]
[null,"Volée",null,null,null,null,null,"Total volée",null,"Total cumulé"]
[1,null,null,null,null,null,null,{"$f":"SUM(B63:G63)","v":0},null,{"$f":"H63","v":0}]
[2,null,null,null,null,null,null,{"$f":"SUM(B64:G64)","v":0},null,{"$f":"H64+J63","v":0}]
[3,null,null,null,null,null,null,0,null,0]
[4,null,null,null,null,null,null,0,null,0]
[5,null,null,null,null,null,null,0,null,0]
[6,null,null,null,null,null,null,0,null,0]
["TOTAL:",null,null,null,null,null,null,null,null,{"$f":"SUM(H63:I68)","v":0}]
[]
[]
[null,"ARCHER N°4 :",null,null,null,null,{"$f":"H75","v":0}]
[]
[]
[null,null,null,null,null,null,"Nom:"]
[]
[null,null,null,null,null,null,"Date:",{"$f":"TODAY()","v":"2020-11-15"}]
[]
[]
[null,"Arc",null,null,null,null,null,"Distance"]
[null,"Classique"]
[null,"Blason",null,null,null,null,null,"Flèche"]
[null,80]
[]
[null,"Volée",null,null,null,null,null,"Total volée",null,"Total cumulé"]
[1,null,null,null,null,null,null,{"$f":"SUM(B86:G86)","v":0},null,{"$f":"H86","v":0}]
[2,null,null,null,null,null,null,{"$f":"SUM(B87:G87)","v":0},null,{"$f":"H87+J86","v":0}]
[3,null,null,null,null,null,null,0,null,0]
[4,null,null,null,null,null,null,0,null,0]
[5,null,null,null,null,null,null,0,null,0]
[6,null,null,null,null,null,null,0,null,0]
["TOTAL:",null,null,null,null,null,null,null,null,{"$f":"SUM(H86:I91)","v":0}]

{"sheet":"feuille2","index":4,"n_rows":42,"n_cols":12,"rows_kept":42,"cut":false,"hidden":true,"merged":[]}
[]
[]
[null,"Arc",null,"Blasons",null,"distances",null,"Flèches",null,"Noms",null,"points"]
[null,"Classique",null,40,null,10,null,"Blanche ",null,"BEAUGEANT THIERRY",null,10]
[null,"Poulie",null,60,null,15,null,"Noire",null,"BÉCHU FRÉDÉRIC",null,9]
[null,null,null,80,null,18,null,"Bleue",null,"BENOIST PHILIPPE",null,8]
[null,null,null,122,null,20,null,"Rouge",null,"BERNEDE RICHARD",null,7]
[null,null,null,null,null,25,null,"Jaune",null,"BRAY PHILIPPE",null,6]
[null,null,null,null,null,30,null,"Bronze",null,"CARRE FREDERIC",null,5]
[null,null,null,null,null,40,null,"Argent",null,"CARRIER BENEDICTE",null,4]
[null,null,null,null,null,50,null,"Or",null,"COUDERT PAUL",null,3]
[null,null,null,null,null,70,null,null,null,"CRIADO JOSE",null,2]
[null,null,null,null,null,null,null,null,null,"DEMARS AUDREY",null,1]
[null,null,null,null,null,null,null,null,null,"DESFOSSEZ ERIC",null,"out"]
[null,null,null,null,null,null,null,null,null,"DIVET FRANCOIS"]
[null,null,null,null,null,null,null,null,null,"DONDET GUILLAUME"]
[null,null,null,null,null,null,null,null,null,"DORIDOT STEPHANE"]
[null,null,null,null,null,null,null,null,null,"DUBOIS ANNE"]
[null,null,null,null,null,null,null,null,null,"GIACOMONI JEAN MARC"]
[null,null,null,null,null,null,null,null,null,"GUEZOU MARC"]
[null,null,null,null,null,null,null,null,null,"GUIGUE JACQUES"]
[null,null,null,null,null,null,null,null,null,"HAZO ROMAIN"]
[null,null,null,null,null,null,null,null,null,"IZAC LAURENT"]
[null,null,null,null,null,null,null,null,null,"JEANJACQUES-LAURENT"]
[null,null,null,null,null,null,null,null,null,"LAUER JEAN-JACQUES"]
[null,null,null,null,null,null,null,null,null,"LAURENT YVES"]
[null,null,null,null,null,null,null,null,null,"LE GALL SANDRINE"]
[null,null,null,null,null,null,null,null,null,"LE GARS YVON"]
[null,null,null,null,null,null,null,null,null,"LENNERTZ-ZILLGENS IRENE"]
[null,null,null,null,null,null,null,null,null,"LIEVEAUX OLIVIER"]
[null,null,null,null,null,null,null,null,null,"MAILLARD MICHEL"]
[null,null,null,null,null,null,null,null,null,"MATHIS ALAIN"]
[null,null,null,null,null,null,null,null,null,"MELIN PHILIPPE"]
[null,null,null,null,null,null,null,null,null,"NEAU MONIQUE"]
[null,null,null,null,null,null,null,null,null,"NEYRAT JULIETTE"]
[null,null,null,null,null,null,null,null,null,"OILLIC HADRIEN"]
[null,null,null,null,null,null,null,null,null,"OILLIC PIERRE"]
[null,null,null,null,null,null,null,null,null,"OTTAVY FREDERIC"]
[null,null,null,null,null,null,null,null,null,"PUYDEBAT-NOGARA"]
[null,null,null,null,null,null,null,null,null,"RODRIGUEZ JOSE"]
[null,null,null,null,null,null,null,null,null,"TICHIT NADINE"]
[null,null,null,null,null,null,null,null,null,"WICHROWSKI PIERRE"]

{"sheet":"données","index":5,"n_rows":47,"n_cols":12,"rows_kept":47,"cut":false,"hidden":true,"merged":[]}
[]
[]
[null,"Arc",null,"Blasons",null,"distances",null,"Flèches",null,"Noms",null,"points"]
[null,"Classique",null,40,null,10,null,"Blanche ",null,"Alain MATHIS",null,10]
[null,"Poulie",null,60,null,15,null,"Noire",null,"Alexandre LIBIS",null,9]
[null,null,null,80,null,18,null,"Bleue",null,"Amaury LEFEBURE",null,8]
[null,null,null,122,null,20,null,"Rouge",null,"Amélie CHANSON",null,7]
[null,null,null,null,null,25,null,"Jaune",null,"Anastasia KLOEPPER",null,6]
[null,null,null,null,null,30,null,"Bronze",null,"Anne DUBOIS",null,5]
[null,null,null,null,null,40,null,"Argent",null,"Astrid PARISET",null,4]
[null,null,null,null,null,50,null,"Or",null,"Bénédicte CARRIER",null,3]
[null,null,null,null,null,70,null,null,null,"Catherine GOG.",null,2]
[null,null,null,null,null,null,null,null,null,"Clothilde GUINARD-LY",null,1]
[null,null,null,null,null,null,null,null,null,"Etienne PROTIN",null,"out"]
[null,null,null,null,null,null,null,null,null,"François DIVET"]
[null,null,null,null,null,null,null,null,null,"Frédéric BÉCHU"]
[null,null,null,null,null,null,null,null,null,"Frédéric CARRE"]
[null,null,null,null,null,null,null,null,null,"Guillaume CARRIER"]
[null,null,null,null,null,null,null,null,null,"Hadrien OIL."]
[null,null,null,null,null,null,null,null,null,"Irène LENNERTZ-ZILLGENS"]
[null,null,null,null,null,null,null,null,null,"Jacques GUIGUE"]
[null,null,null,null,null,null,null,null,null,"Jean-Marc GIACOMONI"]
[null,null,null,null,null,null,null,null,null,"Jean-Philippe LY"]
[null,null,null,null,null,null,null,null,null,"Jérome POURCEL"]
[null,null,null,null,null,null,null,null,null,"José RODRIGUEZ"]
[null,null,null,null,null,null,null,null,null,"Juliette NEY."]
[null,null,null,null,null,null,null,null,null,"Louise TRONQUOIS CANVA"]
[null,null,null,null,null,null,null,null,null,"Marc GUEZOU"]
[null,null,null,null,null,null,null,null,null,"Marie-Christine CHEIRON"]
[null,null,null,null,null,null,null,null,null,"Michel MAILLARD"]
[null,null,null,null,null,null,null,null,null,"Nadine TICHIT"]
[null,null,null,null,null,null,null,null,null,"Nha-Khanh NGUYEN"]
[null,null,null,null,null,null,null,null,null,"Olivier LEMOINE"]
[null,null,null,null,null,null,null,null,null,"Olivier LIEVEAUX"]
[null,null,null,null,null,null,null,null,null,"Paul COUDERT"]
[null,null,null,null,null,null,null,null,null,"Philippe BENOIST"]
[null,null,null,null,null,null,null,null,null,"Philippe BRAY"]
[null,null,null,null,null,null,null,null,null,"Pierre OILLIC"]
[null,null,null,null,null,null,null,null,null,"Rémy CHOLET"]
[null,null,null,null,null,null,null,null,null,"Richard BERNEDE"]
[null,null,null,null,null,null,null,null,null,"Romain HAZO"]
[null,null,null,null,null,null,null,null,null,"Samy CARRRE"]
[null,null,null,null,null,null,null,null,null,"Sofiane BOU. "]
[null,null,null,null,null,null,null,null,null,"Stéphane DORIDOT"]
[null,null,null,null,null,null,null,null,null,"Thierry BEAUGEANT"]
[null,null,null,null,null,null,null,null,null,"Yves LAURENT"]
[null,null,null,null,null,null,null,null,null,"Yvon LE GARS"]